[Event "CCT Chessable Masters Play-In 2025"]
[Site "Online"]
[Date "2025.02.17"]
[Round "5.12"]
[White "Pichot, Alan"]
[Black "Ma, Qun"]
[Result "1/2-1/2"]
[ECO "C54"]
[WhiteElo "2613"]
[BlackElo "2645"]
[PlyCount "163"]
[EventDate "2025.02.13"]
[EventType "swiss"]
[EventCountry "NET"]
[TimeControl "600"]
[WhiteClock "0:00:01"]

1. e4 {[%emt 0:00:01]} e5 {[%emt 0:00:01]} 2. Nf3 {[%emt 0:00:01]} Nc6 {[%emt 0:00:00]} 3. Bc4 {[%emt 0:00:01]} Bc5 {[%emt 0:00:01]} 4. O-O {[%emt 0:00:03]} Nf6 {[%emt 0:00:01]} 5. d3 {[%emt 0:00:02]} d6 {[%emt 0:00:01]} 6. c3 {[%emt 0:00:03]} a5 {[%emt 0:00:00]} 7. h3 {[%emt 0:00:07]} O-O {[%emt 0:00:06]} 8. Be3 {[%emt 0:00:02]} Bxe3 {[%emt 0:00:21]} 9. fxe3 {[%emt 0:00:00]} Be6 {[%emt 0:00:06]} 10. Bxe6 {[%emt 0:00:02]} fxe6 {[%emt 0:00:00]} 11. Nbd2 {[%emt 0:00:05]} d5 {[%emt 0:00:02]} 12. a4 {[%emt 0:00:13]} h6 {[%emt 0:01:25]} 13. Qb3 {[%emt 0:00:11]} b6 {[%emt 0:00:06]} 14. Rf2 {[%emt 0:00:04]} Kh7 {[%emt 0:00:06]} 15. Raf1 {[%emt 0:00:02]} Qd6 {[%emt 0:00:03]} 16. Qc2 {[%emt 0:00:15]} Kg8 {[%emt 0:00:40]} 17. g4 {[%emt 0:00:30]} dxe4 {[%emt 0:00:08]} 18. dxe4 {[%emt 0:00:08]} Qc5 {[%emt 0:00:23]} 19. Qb3 {[%emt 0:00:14]} Rae8 {[%emt 0:00:07]} 20. Qb5 {[%emt 0:00:07]} Nd7 {[%emt 0:00:31]} 21. Qe2 {[%emt 0:01:21]} Qd6 {[%emt 0:00:26]} 22. Rg2 {[%emt 0:00:33]} g6 {[%emt 0:00:35]} 23. g5 {[%emt 0:00:37]} h5 {[%emt 0:00:09]} 24. Nh4 {[%emt 0:00:01]} Rxf1+ {[%emt 0:00:03]} 25. Nxf1 {[%emt 0:00:00]} Nf8 {[%emt 0:00:32]} 26. Ng3 {[%emt 0:00:07]} Rd8 {[%emt 0:00:02]} 27. Kh2 {[%emt 0:00:25]} Qd1 {[%emt 0:00:02]} 28. Qc4 {[%emt 0:00:03]} Rd6 {[%emt 0:00:12]} 29. Qa6 {[%emt 0:02:05]} Qd3 {[%emt 0:00:13]} 30. Qc8 {[%emt 0:00:02]} Qxe3 {[%emt 0:00:01]} 31. Nxg6 {[%emt 0:00:10]} Nd8 {[%emt 0:01:16]} 32. Nxf8 {[%emt 0:00:15]} h4 {[%emt 0:00:01]} 33. Ne2 {[%emt 0:00:48]} Kxf8 {[%emt 0:00:26]} 34. Qxc7 {[%emt 0:00:06]} Rd3 {[%emt 0:00:36]} 35. Ng1 {[%emt 0:00:01]} Rd2 {[%emt 0:00:30]} 36. Rxd2 {[%emt 0:00:09]} Qxd2+ {[%emt 0:00:00]} 37. Kh1 {[%emt 0:00:01]} Nf7 {[%emt 0:00:18]} 38. g6 {[%emt 0:00:05]} Ng5 {[%emt 0:00:05]} 39. Qxe5 {[%emt 0:00:01]} Kg8 {[%emt 0:00:04]} 40. Qf6 {[%emt 0:00:08]} Qe3 {[%emt 0:00:01]} 41. Qd8+ {[%emt 0:00:10]} Kg7 {[%emt 0:00:01]} 42. Qd4+ {[%emt 0:00:02]} Qxd4 {[%emt 0:00:01]} 43. cxd4 {[%emt 0:00:00]} Kxg6 {[%emt 0:00:01]} 44. Kg2 {[%emt 0:00:08]} Nxe4 {[%emt 0:00:00]} 45. Nf3 {[%emt 0:00:00]} Kh5 {[%emt 0:00:02]} 46. Ne5 {[%emt 0:00:01]} Nd6 {[%emt 0:00:00]} 47. Kf3 {[%emt 0:00:02]} b5 {[%emt 0:00:01]} 48. b3 {[%emt 0:00:01]} Kg5 {[%emt 0:00:02]} 49. Nd3 {[%emt 0:00:03]} bxa4 {[%emt 0:00:02]} 50. bxa4 {[%emt 0:00:00]} Kf5 {[%emt 0:00:00]} 51. Nc5 {[%emt 0:00:01]} Nc4 {[%emt 0:00:01]} 52. Ne4 {[%emt 0:00:04]} e5 {[%emt 0:00:01]} 53. d5 {[%emt 0:00:02]} Nb6 {[%emt 0:00:01]} 54. Nc3 {[%emt 0:00:01]} e4+ {[%emt 0:00:01]} 55. Nxe4 {[%emt 0:00:04]} Nxa4 {[%emt 0:00:00]} 56. d6 {[%emt 0:00:04]} Nb6 {[%emt 0:00:01]} 57. Nc5 {[%emt 0:00:01]} Ke5 {[%emt 0:00:00]} 58. d7 {[%emt 0:00:01]} Nxd7 {[%emt 0:00:01]} 59. Nxd7+ {[%emt 0:00:00]} Kd4 {[%emt 0:00:00]} 60. Nb6 {[%emt 0:00:00]} Kc5 {[%emt 0:00:00]} 61. Nd7+ {[%emt 0:00:01]} Kb4 {[%emt 0:00:00]} 62. Nf6 {[%emt 0:00:00]} a4 {[%emt 0:00:01]} 63. Ne4 {[%emt 0:00:00]} a3 {[%emt 0:00:00]} 64. Nf2 {[%emt 0:00:00]} Kc3 {[%emt 0:00:00]} 65. Ne4+ {[%emt 0:00:01]} Kc2 {[%emt 0:00:00]} 66. Nf2 {[%emt 0:00:00]} a2 {[%emt 0:00:00]} 67. Ng4 {[%emt 0:00:00]} a1=Q {[%emt 0:00:00]} 68. Ne3+ {[%emt 0:00:00]} Kb2 {[%emt 0:00:01]} 69. Nf5 {[%emt 0:00:00]} Kb1 {[%emt 0:00:00]} 70. Kg4 {[%emt 0:00:00]} Qa2 {[%emt 0:00:00]} 71. Nxh4 {[%emt 0:00:00]} Qa3 {[%emt 0:00:00]} 72. Nf3 {[%emt 0:00:01]} Qb3 {[%emt 0:00:01]} 73. h4 {[%emt 0:00:00]} Qb4+ {[%emt 0:00:00]} 74. Kg3 {[%emt 0:00:00]} Qa4 {[%emt 0:00:00]} 75. h5 {[%emt 0:00:00]} Qb5 {[%emt 0:00:00]} 76. Kg4 {[%emt 0:00:00]} Qb6 {[%emt 0:00:00]} 77. Ng5 {[%emt 0:00:01]} Qc7 {[%emt 0:00:00]} 78. h6 {[%emt 0:00:00]} Qd8 {[%emt 0:00:00]} 79. h7 {[%emt 0:00:00]} Qc8+ {[%emt 0:00:00]} 80. Kh5 {[%emt 0:00:00]} Qh8 {[%emt 0:00:01]} 81. Kg6 {[%emt 0:00:00]} Qxh7+ {[%emt 0:00:00]} 82. Kxh7 {[%emt 0:00:01]} 1/2-1/2

[Event "CCT Chessable Masters Play-In 2025"]
[Site "Online"]
[Date "2025.02.17"]
[Round "5.13"]
[White "Lobanov, Sergei"]
[Black "Deac, Bogdan-Daniel"]
[Result "1/2-1/2"]
[ECO "E51"]
[WhiteElo "2508"]
[BlackElo "2692"]
[PlyCount "84"]
[EventDate "2025.02.13"]
[EventType "swiss"]
[EventCountry "NET"]
[TimeControl "600"]
[WhiteClock "0:05:58"]
[BlackClock "0:03:24"]

1. d4 {[%emt 0:00:01]} Nf6 {[%emt 0:00:02]} 2. c4 {[%emt 0:00:00]} e6 {[%emt 0:00:01]} 3. Nc3 {[%emt 0:00:02]} Bb4 {[%emt 0:00:00]} 4. e3 {[%emt 0:00:00]} d5 {[%emt 0:00:01]} 5. a3 {[%emt 0:00:01]} Be7 {[%emt 0:00:06]} 6. Nf3 {[%emt 0:00:02]} O-O {[%emt 0:00:03]} 7. Bd3 {[%emt 0:00:02]} dxc4 {[%emt 0:00:01]} 8. Bxc4 {[%emt 0:00:01]} c5 {[%emt 0:00:01]} 9. O-O {[%emt 0:00:01]} a6 {[%emt 0:00:02]} 10. dxc5 {[%emt 0:00:04]} Qxd1 {[%emt 0:00:10]} 11. Rxd1 {[%emt 0:00:02]} Bxc5 {[%emt 0:00:01]} 12. Be2 {[%emt 0:00:01]} Nc6 {[%emt 0:00:20]} 13. b4 {[%emt 0:00:22]} Be7 {[%emt 0:00:04]} 14. Na4 {[%emt 0:00:11]} b5 {[%emt 0:00:49]} 15. Nb6 {[%emt 0:00:02]} Rb8 {[%emt 0:00:00]} 16. Nxc8 {[%emt 0:00:01]} Rfxc8 {[%emt 0:00:01]} 17. Bb2 {[%emt 0:00:02]} Nd5 {[%emt 0:03:48]} 18. Nd4 {[%emt 0:00:20]} Nxd4 {[%emt 0:00:08]} 19. Bxd4 {[%emt 0:00:03]} Nc3 {[%emt 0:00:05]} 20. Bxc3 {[%emt 0:00:01]} Rxc3 {[%emt 0:00:01]} 21. a4 {[%emt 0:00:31]} Bxb4 {[%emt 0:00:16]} 22. axb5 {[%emt 0:01:35]} axb5 {[%emt 0:00:00]} 23. Rab1 {[%emt 0:00:13]} Bf8 {[%emt 0:00:06]} 24. Rxb5 {[%emt 0:00:02]} Rxb5 {[%emt 0:00:02]} 25. Bxb5 {[%emt 0:00:01]} g6 {[%emt 0:00:00]} 26. g3 {[%emt 0:00:01]} Rc7 {[%emt 0:00:06]} 27. h4 {[%emt 0:00:03]} h5 {[%emt 0:00:01]} 28. Rd7 {[%emt 0:00:02]} Rxd7 {[%emt 0:00:01]} 29. Bxd7 {[%emt 0:00:00]} Kg7 {[%emt 0:00:01]} 30. Kg2 {[%emt 0:00:01]} e5 {[%emt 0:00:00]} 31. Kf3 {[%emt 0:00:03]} Bb4 {[%emt 0:00:02]} 32. Bc6 {[%emt 0:00:02]} Be1 {[%emt 0:00:01]} 33. Ke2 {[%emt 0:00:01]} Ba5 {[%emt 0:00:01]} 34. Bd5 {[%emt 0:00:00]} f5 {[%emt 0:00:01]} 35. Bc4 {[%emt 0:00:01]} Kf6 {[%emt 0:00:02]} 36. Bb5 {[%emt 0:00:01]} f4 {[%emt 0:00:07]} 37. exf4 {[%emt 0:00:02]} exf4 {[%emt 0:00:01]} 38. Kf3 {[%emt 0:00:01]} fxg3 {[%emt 0:00:01]} 39. fxg3 {[%emt 0:00:01]} g5 {[%emt 0:00:01]} 40. hxg5+ {[%emt 0:00:00]} Kxg5 {[%emt 0:00:00]} 41. Be8 {[%emt 0:00:01]} Bc7 {[%emt 0:00:01]} 42. Bxh5 {[%emt 0:00:01]} Bxg3 {[%emt 0:00:01]} 1/2-1/2

[Event "CCT Chessable Masters Play-In 2025"]
[Site "Online"]
[Date "2025.02.17"]
[Round "5.14"]
[White "Muradli, Mahammad"]
[Black "Sadhwani, Raunak"]
[Result "0-1"]
[ECO "A13"]
[WhiteElo "2588"]
[BlackElo "2666"]
[PlyCount "58"]
[EventDate "2025.02.13"]
[EventType "swiss"]
[EventCountry "NET"]
[TimeControl "600"]
[WhiteClock "0:03:23"]
[BlackClock "0:06:23"]

1. Nf3 {[%emt 0:00:09]} Nf6 {[%emt 0:00:02]} 2. c4 {[%emt 0:00:03]} e6 {[%emt 0:00:01]} 3. g3 {[%emt 0:00:03]} d5 {[%emt 0:00:00]} 4. Bg2 {[%emt 0:00:00]} d4 {[%emt 0:00:01]} 5. b4 {[%emt 0:00:17]} c5 {[%emt 0:00:21]} 6. Bb2 {[%emt 0:00:04]} Nc6 {[%emt 0:00:39]} 7. b5 {[%emt 0:00:06]} Na5 {[%emt 0:00:00]} 8. d3 {[%emt 0:00:03]} Bd6 {[%emt 0:00:01]} 9. O-O {[%emt 0:00:08]} O-O {[%emt 0:00:01]} 10. Nbd2 {[%emt 0:00:03]} a6 {[%emt 0:00:01]} 11. a4 {[%emt 0:00:11]} e5 {[%emt 0:00:01]} 12. Qc2 {[%emt 0:00:28]} Rb8 {[%emt 0:00:09]} 13. e4 {[%emt 0:00:09]} b6 {[%emt 0:00:04]} 14. Rae1 {[%emt 0:00:34]} Re8 {[%emt 0:00:01]} 15. Kh1 {[%emt 0:00:05]} axb5 {[%emt 0:00:02]} 16. axb5 {[%emt 0:00:01]} Ra8 {[%emt 0:00:00]} 17. Ng1 {[%emt 0:00:08]} Qc7 {[%emt 0:00:17]} 18. h3 {[%emt 0:00:09]} Nb7 {[%emt 0:00:01]} 19. Bc1 {[%emt 0:00:04]} Nd8 {[%emt 0:00:02]} 20. f4 {[%emt 0:00:49]} Nh5 {[%emt 0:00:54]} 21. Ne2 {[%emt 0:00:01]} exf4 {[%emt 0:00:01]} 22. g4 {[%emt 0:00:08]} f3 {[%emt 0:00:11]} 23. Rxf3 {[%emt 0:00:27]} Ng3+ {[%emt 0:00:01]} 24. Nxg3 {[%emt 0:00:01]} Bxg3 {[%emt 0:00:00]} 25. Ref1 {[%emt 0:00:04]} f6 {[%emt 0:00:05]} 26. e5 {[%emt 0:01:25]} Bxe5 {[%emt 0:00:08]} 27. Rxf6 {[%emt 0:00:01]} Bxf6 {[%emt 0:00:08]} 28. Bxa8 {[%emt 0:00:01]} Re2 {[%emt 0:00:13]} 29. Bd5+ {[%emt 0:00:55]} Kh8 {[%emt 0:00:12]} 0-1

[Event "CCT Chessable Masters Play-In 2025"]
[Site "Online"]
[Date "2025.02.17"]
[Round "5.15"]
[White "Narayanan S L"]
[Black "Dubov, Daniil"]
[Result "1/2-1/2"]
[ECO "A46"]
[WhiteElo "2622"]
[BlackElo "2701"]
[PlyCount "78"]
[EventDate "2025.02.13"]
[EventType "swiss"]
[EventCountry "NET"]
[TimeControl "600"]
[WhiteClock "0:06:20"]
[BlackClock "0:05:01"]

1. d4 {[%emt 0:00:02]} Nf6 {[%emt 0:00:04]} 2. Nf3 {[%emt 0:00:00]} b6 {[%emt 0:00:01]} 3. Bg5 {[%emt 0:00:02]} Bb7 {[%emt 0:00:02]} 4. Nbd2 {[%emt 0:00:02]} e6 {[%emt 0:00:02]} 5. e3 {[%emt 0:00:03]} h6 {[%emt 0:00:02]} 6. Bh4 {[%emt 0:00:00]} c5 {[%emt 0:00:01]} 7. c3 {[%emt 0:00:02]} Nc6 {[%emt 0:00:03]} 8. Bd3 {[%emt 0:00:08]} Be7 {[%emt 0:00:04]} 9. h3 {[%emt 0:00:02]} cxd4 {[%emt 0:00:23]} 10. cxd4 {[%emt 0:00:02]} Nb4 {[%emt 0:00:04]} 11. Be2 {[%emt 0:00:02]} Rc8 {[%emt 0:00:04]} 12. O-O {[%emt 0:00:03]} O-O {[%emt 0:00:01]} 13. a3 {[%emt 0:00:02]} Nbd5 {[%emt 0:00:04]} 14. Bg3 {[%emt 0:00:06]} Nh5 {[%emt 0:00:10]} 15. Bh2 {[%emt 0:00:01]} f5 {[%emt 0:00:00]} 16. Ne5 {[%emt 0:00:04]} Nhf6 {[%emt 0:00:02]} 17. Qa4 {[%emt 0:00:12]} a6 {[%emt 0:00:12]} 18. Rfc1 {[%emt 0:00:02]} Kh7 {[%emt 0:00:08]} 19. Bd3 {[%emt 0:00:10]} d6 {[%emt 0:00:26]} 20. Nef3 {[%emt 0:00:03]} Kg8 {[%emt 0:00:08]} 21. Qd1 {[%emt 0:00:07]} Qd7 {[%emt 0:00:07]} 22. Qe2 {[%emt 0:00:01]} Rxc1+ {[%emt 0:00:08]} 23. Rxc1 {[%emt 0:00:02]} Rc8 {[%emt 0:00:07]} 24. Re1 {[%emt 0:00:01]} b5 {[%emt 0:00:09]} 25. e4 {[%emt 0:00:13]} fxe4 {[%emt 0:00:02]} 26. Nxe4 {[%emt 0:00:01]} Rf8 {[%emt 0:00:19]} 27. Nxf6+ {[%emt 0:00:06]} Rxf6 {[%emt 0:00:03]} 28. Be4 {[%emt 0:00:32]} Bd8 {[%emt 0:00:10]} 29. Bg3 {[%emt 0:00:02]} Bb6 {[%emt 0:00:04]} 30. Qd2 {[%emt 0:00:08]} Rf7 {[%emt 0:00:34]} 31. Nh2 {[%emt 0:00:06]} Bc6 {[%emt 0:00:27]} 32. Bg6 {[%emt 0:00:15]} Rf8 {[%emt 0:00:08]} 33. Ng4 {[%emt 0:00:02]} Ne7 {[%emt 0:00:05]} 34. Nxh6+ {[%emt 0:00:14]} gxh6 {[%emt 0:00:01]} 35. Qxh6 {[%emt 0:00:00]} Rf6 {[%emt 0:00:30]} 36. Qh7+ {[%emt 0:00:05]} Kf8 {[%emt 0:00:01]} 37. Qh6+ {[%emt 0:00:01]} Kg8 {[%emt 0:00:01]} 38. Qh7+ {[%emt 0:00:15]} Kf8 {[%emt 0:00:01]} 39. Qh6+ {[%emt 0:00:21]} Kg8 {[%emt 0:00:01]} 1/2-1/2

[Event "CCT Chessable Masters Play-In 2025"]
[Site "Online"]
[Date "2025.02.17"]
[Round "5.16"]
[White "Yakubboev, Nodirbek"]
[Black "Bologan, Victor"]
[Result "1-0"]
[ECO "E14"]
[WhiteElo "2659"]
[BlackElo "2603"]
[PlyCount "123"]
[EventDate "2025.02.13"]
[EventType "swiss"]
[EventCountry "NET"]
[TimeControl "600"]
[WhiteClock "0:01:26"]
[BlackClock "0:00:22"]

1. d4 {[%emt 0:00:01]} Nf6 {[%emt 0:00:03]} 2. c4 {[%emt 0:00:02]} e6 {[%emt 0:00:01]} 3. Nf3 {[%emt 0:00:02]} Bb4+ {[%emt 0:00:04]} 4. Nbd2 {[%emt 0:00:09]} b6 {[%emt 0:00:02]} 5. a3 {[%emt 0:00:05]} Bxd2+ {[%emt 0:00:01]} 6. Qxd2 {[%emt 0:00:01]} Bb7 {[%emt 0:00:02]} 7. e3 {[%emt 0:00:02]} O-O {[%emt 0:00:03]} 8. Be2 {[%emt 0:00:08]} d6 {[%emt 0:00:01]} 9. b4 {[%emt 0:00:05]} Nbd7 {[%emt 0:00:05]} 10. Bb2 {[%emt 0:00:02]} Ne4 {[%emt 0:00:15]} 11. Qc2 {[%emt 0:00:02]} Ng5 {[%emt 0:00:04]} 12. Nd2 {[%emt 0:00:27]} f5 {[%emt 0:00:13]} 13. O-O {[%emt 0:01:03]} Ne4 {[%emt 0:01:58]} 14. f3 {[%emt 0:00:45]} Nxd2 {[%emt 0:00:05]} 15. Qxd2 {[%emt 0:00:00]} a5 {[%emt 0:00:04]} 16. c5 {[%emt 0:00:23]} Nf6 {[%emt 0:00:11]} 17. cxb6 {[%emt 0:00:48]} cxb6 {[%emt 0:00:03]} 18. b5 {[%emt 0:00:04]} Rc8 {[%emt 0:00:08]} 19. Rac1 {[%emt 0:00:07]} Qd7 {[%emt 0:00:08]} 20. a4 {[%emt 0:00:21]} Rxc1 {[%emt 0:00:03]} 21. Rxc1 {[%emt 0:00:02]} Rc8 {[%emt 0:00:02]} 22. Ba3 {[%emt 0:00:03]} Nd5 {[%emt 0:00:47]} 23. Bc4 {[%emt 0:00:17]} Nf6 {[%emt 0:00:16]} 24. Bd3 {[%emt 0:00:11]} Rxc1+ {[%emt 0:00:03]} 25. Qxc1 {[%emt 0:00:01]} Kf7 {[%emt 0:00:06]} 26. h4 {[%emt 0:00:06]} h6 {[%emt 0:00:01]} 27. Qc2 {[%emt 0:00:09]} Nd5 {[%emt 0:00:08]} 28. e4 {[%emt 0:00:05]} fxe4 {[%emt 0:00:03]} 29. fxe4 {[%emt 0:00:34]} Nf6 {[%emt 0:00:06]} 30. Qf2 {[%emt 0:00:19]} Kg8 {[%emt 0:00:24]} 31. Qf4 {[%emt 0:00:39]} e5 {[%emt 0:00:05]} 32. dxe5 {[%emt 0:00:08]} dxe5 {[%emt 0:00:08]} 33. Bc4+ {[%emt 0:00:02]} Kh8 {[%emt 0:00:18]} 34. Qxe5 {[%emt 0:00:04]} Qd1+ {[%emt 0:00:10]} 35. Bf1 {[%emt 0:00:03]} Bxe4 {[%emt 0:00:12]} 36. Qb8+ {[%emt 0:00:07]} Kh7 {[%emt 0:00:40]} 37. Qxb6 {[%emt 0:00:02]} Bd3 {[%emt 0:00:07]} 38. Qf2 {[%emt 0:00:02]} Bxf1 {[%emt 0:00:09]} 39. Qxf1 {[%emt 0:00:00]} Qxa4 {[%emt 0:00:02]} 40. Bb2 {[%emt 0:00:03]} Qxh4 {[%emt 0:00:28]} 41. Bxf6 {[%emt 0:00:02]} gxf6 {[%emt 0:00:04]} 42. Qb1+ {[%emt 0:00:02]} Kg7 {[%emt 0:00:05]} 43. b6 {[%emt 0:00:01]} Qd4+ {[%emt 0:00:02]} 44. Kf1 {[%emt 0:00:01]} Qf4+ {[%emt 0:00:07]} 45. Ke2 {[%emt 0:00:02]} Qe5+ {[%emt 0:00:03]} 46. Kf3 {[%emt 0:00:02]} Qd5+ {[%emt 0:00:01]} 47. Kg3 {[%emt 0:00:08]} Qe5+ {[%emt 0:00:02]} 48. Kf2 {[%emt 0:00:06]} Qd4+ {[%emt 0:00:03]} 49. Ke2 {[%emt 0:00:01]} Qe5+ {[%emt 0:00:02]} 50. Kf3 {[%emt 0:00:03]} Qd5+ {[%emt 0:00:01]} 51. Qe4 {[%emt 0:00:03]} Qb3+ {[%emt 0:00:06]} 52. Qe3 {[%emt 0:00:01]} Qd5+ {[%emt 0:00:02]} 53. Kf2 {[%emt 0:00:04]} a4 {[%emt 0:00:06]} 54. Qe7+ {[%emt 0:00:03]} Kg6 {[%emt 0:00:01]} 55. b7 {[%emt 0:00:01]} Qd4+ {[%emt 0:00:02]} 56. Kf3 {[%emt 0:00:02]} Qd1+ {[%emt 0:00:11]} 57. Kg3 {[%emt 0:00:03]} Qb3+ {[%emt 0:00:03]} 58. Kh2 {[%emt 0:00:03]} Qb5 {[%emt 0:00:19]} 59. Qc7 {[%emt 0:00:02]} Qb4 {[%emt 0:00:07]} 60. Kh3 {[%emt 0:00:05]} h5 {[%emt 0:00:16]} 61. Qg3+ {[%emt 0:00:03]} Kf5 {[%emt 0:00:06]} 62. b8=Q {[%emt 0:00:02]} 1-0

[Event "CCT Chessable Masters Play-In 2025"]
[Site "Online"]
[Date "2025.02.17"]
[Round "5.17"]
[White "Rozum, Ivan"]
[Black "Martirosyan, Haik M."]
[Result "0-1"]
[ECO "E15"]
[WhiteElo "2443"]
[BlackElo "2645"]
[PlyCount "148"]
[EventDate "2025.02.13"]
[EventType "swiss"]
[EventCountry "NET"]
[TimeControl "600"]
[WhiteClock "0:00:21"]
[BlackClock "0:01:02"]

1. d4 {[%emt 0:00:01]} Nf6 {[%emt 0:00:01]} 2. Nf3 {[%emt 0:00:01]} e6 {[%emt 0:00:01]} 3. c4 {[%emt 0:00:02]} b6 {[%emt 0:00:01]} 4. g3 {[%emt 0:00:01]} Ba6 {[%emt 0:00:01]} 5. b3 {[%emt 0:00:02]} Bb4+ {[%emt 0:00:01]} 6. Bd2 {[%emt 0:00:01]} Be7 {[%emt 0:00:02]} 7. Bg2 {[%emt 0:00:01]} d5 {[%emt 0:00:00]} 8. cxd5 {[%emt 0:00:14]} exd5 {[%emt 0:00:00]} 9. O-O {[%emt 0:00:01]} O-O {[%emt 0:00:02]} 10. Nc3 {[%emt 0:00:01]} Re8 {[%emt 0:00:00]} 11. Rc1 {[%emt 0:00:14]} Nbd7 {[%emt 0:00:22]} 12. Bf4 {[%emt 0:00:11]} Nf8 {[%emt 0:00:07]} 13. Ne5 {[%emt 0:00:04]} Bb7 {[%emt 0:00:01]} 14. Bg5 {[%emt 0:00:27]} Ne6 {[%emt 0:00:26]} 15. Bxf6 {[%emt 0:00:03]} Bxf6 {[%emt 0:00:00]} 16. e3 {[%emt 0:00:01]} c5 {[%emt 0:00:17]} 17. f4 {[%emt 0:00:46]} cxd4 {[%emt 0:00:04]} 18. exd4 {[%emt 0:00:01]} Rc8 {[%emt 0:00:04]} 19. Qd2 {[%emt 0:00:04]} a6 {[%emt 0:01:08]} 20. Ne2 {[%emt 0:00:34]} Qd6 {[%emt 0:00:14]} 21. Bh3 {[%emt 0:00:12]} h5 {[%emt 0:00:20]} 22. Kf2 {[%emt 0:00:09]} Rc7 {[%emt 0:00:35]} 23. Rxc7 {[%emt 0:00:08]} Nxc7 {[%emt 0:00:00]} 24. Rc1 {[%emt 0:00:04]} Rd8 {[%emt 0:00:05]} 25. Ng1 {[%emt 0:00:33]} Ne8 {[%emt 0:00:01]} 26. Ngf3 {[%emt 0:00:16]} Qe7 {[%emt 0:00:02]} 27. Kg1 {[%emt 0:00:13]} Nd6 {[%emt 0:00:02]} 28. Qc2 {[%emt 0:00:11]} Bc8 {[%emt 0:00:34]} 29. Bf1 {[%emt 0:00:13]} Bf5 {[%emt 0:00:08]} 30. Qc7 {[%emt 0:00:04]} Rc8 {[%emt 0:00:19]} 31. Qxe7 {[%emt 0:00:02]} Bxe7 {[%emt 0:00:00]} 32. Rxc8+ {[%emt 0:00:06]} Bxc8 {[%emt 0:00:01]} 33. Nc6 {[%emt 0:00:19]} Bf8 {[%emt 0:00:04]} 34. Nb4 {[%emt 0:00:07]} a5 {[%emt 0:00:03]} 35. Nc6 {[%emt 0:00:24]} Bb7 {[%emt 0:00:12]} 36. Nce5 {[%emt 0:00:03]} Be7 {[%emt 0:00:11]} 37. Bd3 {[%emt 0:00:18]} Ne4 {[%emt 0:00:02]} 38. a4 {[%emt 0:00:03]} f6 {[%emt 0:00:16]} 39. Ng6 {[%emt 0:00:08]} Ba3 {[%emt 0:00:04]} 40. Ngh4 {[%emt 0:00:08]} Kf7 {[%emt 0:00:05]} 41. Kf1 {[%emt 0:00:01]} Bc8 {[%emt 0:00:07]} 42. f5 {[%emt 0:00:04]} Bc1 {[%emt 0:00:04]} 43. Ke2 {[%emt 0:00:01]} Nc3+ {[%emt 0:00:15]} 44. Kf2 {[%emt 0:00:06]} Bd7 {[%emt 0:00:04]} 45. Ng1 {[%emt 0:00:18]} Bg5 {[%emt 0:00:14]} 46. Ne2 {[%emt 0:00:06]} Nd1+ {[%emt 0:00:09]} 47. Kf3 {[%emt 0:00:07]} Bd2 {[%emt 0:00:15]} 48. Nf4 {[%emt 0:00:06]} Nc3 {[%emt 0:00:03]} 49. Nxh5 {[%emt 0:00:06]} b5 {[%emt 0:00:04]} 50. axb5 {[%emt 0:00:07]} Nxb5 {[%emt 0:00:01]} 51. Bxb5 {[%emt 0:00:03]} Bxb5 {[%emt 0:00:00]} 52. Nf4 {[%emt 0:00:01]} Bc4 {[%emt 0:00:36]} 53. bxc4 {[%emt 0:00:21]} a4 {[%emt 0:00:01]} 54. Ke2 {[%emt 0:00:53]} a3 {[%emt 0:00:21]} 55. Kxd2 {[%emt 0:00:01]} a2 {[%emt 0:00:01]} 56. Nxd5 {[%emt 0:00:07]} a1=Q {[%emt 0:00:01]} 57. Nf3 {[%emt 0:00:04]} Qf1 {[%emt 0:00:06]} 58. Ke3 {[%emt 0:00:01]} Qxc4 {[%emt 0:00:02]} 59. Nf4 {[%emt 0:00:01]} Qc1+ {[%emt 0:00:04]} 60. Ke4 {[%emt 0:00:00]} Qb1+ {[%emt 0:00:01]} 61. Ke3 {[%emt 0:00:01]} Qxf5 {[%emt 0:00:00]} 62. Nd3 {[%emt 0:00:05]} Qe6+ {[%emt 0:00:03]} 63. Kd2 {[%emt 0:00:01]} Qe4 {[%emt 0:00:03]} 64. Nde1 {[%emt 0:00:03]} g5 {[%emt 0:00:02]} 65. h3 {[%emt 0:00:01]} Qe6 {[%emt 0:00:02]} 66. g4 {[%emt 0:00:00]} Qe4 {[%emt 0:00:02]} 67. Kc3 {[%emt 0:00:06]} Qe2 {[%emt 0:00:02]} 68. Kb4 {[%emt 0:00:01]} Qf1 {[%emt 0:00:06]} 69. Kc5 {[%emt 0:00:01]} Qxh3 {[%emt 0:00:01]} 70. d5 {[%emt 0:00:01]} Qxg4 {[%emt 0:00:01]} 71. d6 {[%emt 0:00:00]} Qe4 {[%emt 0:00:05]} 72. Kb6 {[%emt 0:00:06]} Ke6 {[%emt 0:00:02]} 73. Kc7 {[%emt 0:00:02]} Qc4+ {[%emt 0:00:03]} 74. Kd8 {[%emt 0:00:06]} Kxd6 {[%emt 0:00:01]} 0-1

[Event "CCT Chessable Masters Play-In 2025"]
[Site "Online"]
[Date "2025.02.17"]
[Round "5.18"]
[White "Ivic, Velimir"]
[Black "Mikaelyan, Arman"]
[Result "0-1"]
[ECO "B30"]
[WhiteElo "2622"]
[BlackElo "2497"]
[PlyCount "76"]
[EventDate "2025.02.13"]
[EventType "swiss"]
[EventCountry "NET"]
[TimeControl "600"]
[WhiteClock "0:00:58"]
[BlackClock "0:01:22"]

1. e4 {[%emt 0:00:01]} c5 {[%emt 0:00:08]} 2. Nf3 {[%emt 0:00:01]} Nc6 {[%emt 0:00:04]} 3. Bb5 {[%emt 0:00:01]} e6 {[%emt 0:00:04]} 4. O-O {[%emt 0:00:04]} Nge7 {[%emt 0:00:04]} 5. d4 {[%emt 0:00:01]} cxd4 {[%emt 0:00:04]} 6. Nxd4 {[%emt 0:00:00]} Qb6 {[%emt 0:00:03]} 7. Nxc6 {[%emt 0:00:02]} dxc6 {[%emt 0:00:33]} 8. Bd3 {[%emt 0:00:07]} Ng6 {[%emt 0:00:04]} 9. Nd2 {[%emt 0:00:15]} Qc7 {[%emt 0:00:15]} 10. Nc4 {[%emt 0:00:09]} Be7 {[%emt 0:00:15]} 11. a4 {[%emt 0:00:21]} O-O {[%emt 0:00:03]} 12. f4 {[%emt 0:00:03]} b5 {[%emt 0:00:09]} 13. Na3 {[%emt 0:00:02]} a6 {[%emt 0:01:12]} 14. Kh1 {[%emt 0:00:03]} Bb7 {[%emt 0:00:18]} 15. Qh5 {[%emt 0:00:57]} Rad8 {[%emt 0:00:37]} 16. Be3 {[%emt 0:00:24]} e5 {[%emt 0:00:16]} 17. f5 {[%emt 0:00:49]} Nf4 {[%emt 0:00:02]} 18. Bxf4 {[%emt 0:00:00]} exf4 {[%emt 0:00:00]} 19. e5 {[%emt 0:00:00]} Rxd3 {[%emt 0:01:08]} 20. cxd3 {[%emt 0:00:38]} Qxe5 {[%emt 0:00:02]} 21. Rae1 {[%emt 0:00:02]} Qd6 {[%emt 0:00:22]} 22. Qf3 {[%emt 0:00:13]} Qd7 {[%emt 0:00:42]} 23. Qxf4 {[%emt 0:00:11]} Bf6 {[%emt 0:00:04]} 24. Nc2 {[%emt 0:00:40]} c5 {[%emt 0:00:04]} 25. Ne3 {[%emt 0:00:19]} h5 {[%emt 0:00:07]} 26. axb5 {[%emt 0:00:06]} axb5 {[%emt 0:00:00]} 27. Rd1 {[%emt 0:01:44]} Re8 {[%emt 0:00:22]} 28. Rfe1 {[%emt 0:00:11]} Qc6 {[%emt 0:00:22]} 29. Qf1 {[%emt 0:00:19]} Re5 {[%emt 0:00:18]} 30. Re2 {[%emt 0:00:20]} Qe8 {[%emt 0:00:13]} 31. Rde1 {[%emt 0:00:01]} Bh4 {[%emt 0:00:01]} 32. Nc4 {[%emt 0:00:10]} Rxe2 {[%emt 0:00:15]} 33. Rxe2 {[%emt 0:00:00]} Qd8 {[%emt 0:00:12]} 34. Ne5 {[%emt 0:00:15]} Bf6 {[%emt 0:00:01]} 35. Qf4 {[%emt 0:00:07]} Qd5 {[%emt 0:00:04]} 36. h3 {[%emt 0:00:03]} c4 {[%emt 0:00:06]} 37. dxc4 {[%emt 0:00:03]} Qd1+ {[%emt 0:00:02]} 38. Kh2 {[%emt 0:00:20]} Qxe2 {[%emt 0:00:02]} 0-1